bitfinex/quotes_BTCUSD_20250602
["timestamp","ask_amount","ask_price","bid_price","bid_amount"]
[1748831193869,0.00348446,105190.0,105180.0,0.6639907]
[1748831194079,0.00348446,105190.0,105180.0,0.96569441]
[1748831198172,0.00348446,105190.0,105180.0,1.28373812]
[1748831198413,0.00348446,105190.0,105180.0,1.28859896]
[1748831198616,0.00348446,105190.0,105180.0,0.97055525]
[1748831199245,0.00348446,105190.0,105180.0,1.28859896]
[1748831199460,0.00348446,105190.0,105180.0,1.30439896]
[1748831202229,0.00348446,105190.0,105180.0,0.99667896]
[1748831202449,0.00348446,105190.0,105180.0,1.28855896]
[1748831203169,0.00348446,105190.0,105180.0,0.97051525]
[1748831204239,0.01299025,105190.0,105180.0,0.65247154]
[1748831204453,0.00348446,105190.0,105180.0,0.67863525]
[1748831204669,0.01858446,105190.0,105180.0,0.95471525]
[1748831205053,0.00348446,105190.0,105180.0,0.97101525]
[1748831206396,0.00348446,105190.0,105180.0,0.67913525]
[1748831206606,0.00348446,105190.0,105180.0,0.97101525]
[1748831208629,0.01299025,105190.0,105180.0,0.97101525]
[1748831208831,0.01299025,105190.0,105180.0,0.67913525]
[1748831209039,0.02869025,105190.0,105180.0,0.95471525]
[1748831209241,0.02869025,105190.0,105180.0,0.66283525]
[1748831209858,0.03819622,105190.0,105180.0,0.66283525]
[1748831211058,0.03819613,105190.0,105180.0,0.66283525]
[1748831211916,0.02869025,105190.0,105180.0,0.66283525]
[1748831212114,0.01918446,105190.0,105180.0,0.66283525]
[1748831212369,0.02869025,105190.0,105180.0,0.66283525]
[1748831212977,0.03819613,105190.0,105180.0,0.66283525]
[1748831214438,0.02869025,105190.0,105180.0,0.66283525]
[1748831214854,0.03819613,105190.0,105180.0,0.66283525]
[1748831215070,0.0477021,105190.0,105180.0,0.66283525]
[1748831216329,0.03819613,105190.0,105180.0,0.66283525]
[1748831217518,0.01918446,105190.0,105180.0,0.66283525]
[1748831217767,0.02869025,105190.0,105180.0,0.66283525]
[1748831218994,0.02869025,105190.0,105180.0,0.34479154]
[1748831219205,0.02869025,105190.0,105180.0,0.66283525]
[1748831221671,0.03819622,105190.0,105180.0,0.66283525]
[1748831222077,0.02869025,105190.0,105180.0,0.66283525]
[1748831222286,0.03819622,105190.0,105180.0,0.66283525]
[1748831222475,0.03819631,105190.0,105180.0,0.34479154]
[1748831222696,0.03819622,105190.0,105180.0,0.66283525]
[1748831223503,0.02869025,105190.0,105180.0,0.66283525]
[1748831223704,0.03819622,105190.0,105180.0,0.66283525]
[1748831223939,0.03819613,105190.0,105180.0,0.66283525]
[1748831224356,0.01918446,105190.0,105180.0,0.66283525]
[1748831224559,0.02869034,105190.0,105180.0,0.66283525]
[1748831228822,0.03819622,105190.0,105180.0,0.66283525]
[1748831232190,0.01918446,105190.0,105180.0,0.66283525]
[1748831234806,0.02869034,105190.0,105180.0,0.66283525]
[1748831235025,0.01918446,105190.0,105180.0,0.66283525]
[1748831236958,0.02869034,105190.0,105180.0,0.66283525]
[1748831237173,0.01918446,105190.0,105180.0,0.66283525]
[1748831237390,0.02869025,105190.0,105180.0,0.66283525]
[1748831238062,0.02869025,105190.0,105180.0,0.66285303]
[1748831238486,0.01918446,105190.0,105180.0,0.66285303]
[1748831239591,0.02869034,105190.0,105180.0,0.66285303]
[1748831240012,0.01918446,105190.0,105180.0,0.66285303]
[1748831242204,0.00348446,105190.0,105180.0,0.99599674]
[1748831242415,0.00348446,105190.0,105180.0,1.01099674]
[1748831242634,0.00348446,105190.0,105180.0,1.32904045]
[1748831242887,0.00348446,105190.0,105180.0,1.00611812]
[1748831243528,0.00148446,105190.0,105180.0,1.33416183]
[1748831243733,0.00048446,105190.0,105180.0,1.33416183]
[1748831243946,0.00048446,105190.0,105180.0,1.35292973]
[1748831244137,0.00148446,105190.0,105180.0,1.35292973]
[1748831244794,0.00248446,105190.0,105180.0,1.35592973]
[1748831245432,0.00248446,105190.0,105180.0,1.03788602]
[1748831245617,0.00248446,105190.0,105180.0,1.35592973]
[1748831245816,0.00248446,105190.0,105180.0,1.03788602]
[1748831246029,0.00248446,105190.0,105180.0,1.35592973]
[1748831246464,0.00248446,105190.0,105180.0,1.41161115]
[1748831246685,0.00248446,105190.0,105180.0,1.81161115]
[1748831247392,0.00148446,105190.0,105180.0,1.84014115]
[1748831247605,0.00248446,105190.0,105180.0,1.84014115]
[1748831247824,0.00148446,105190.0,105180.0,1.83714115]
[1748831248033,0.00148446,105190.0,105180.0,1.78145973]
[1748831248241,0.00248446,105190.0,105180.0,1.78445973]
[1748831248401,0.00248446,105190.0,105180.0,0.8303286]
[1748831248611,0.00248446,105190.0,105180.0,1.83777602]
[1748831249678,0.00248446,105190.0,105180.0,0.7865607]
[1748831249811,0.00248446,105190.0,105180.0,1.80400812]
[1748831250014,0.00248446,105190.0,105180.0,1.42264812]
[1748831250256,0.00248446,105190.0,105180.0,1.80400812]
[1748831250459,0.00248446,105190.0,105180.0,1.40400812]
[1748831252166,0.00248446,105190.0,105180.0,1.80400812]
[1748831252587,0.00248446,105190.0,105180.0,1.81910812]
[1748831252992,0.00248446,105190.0,105180.0,1.82910812]
[1748831253777,0.00248446,105190.0,105180.0,1.84835737]
[1748831255271,0.00248446,105190.0,105180.0,1.84808025]
[1748831263208,0.00248446,105190.0,105180.0,1.21226995]
[1748831263408,0.00248446,105190.0,105180.0,1.84808025]
[1748831272874,0.00248446,105190.0,105180.0,1.83298025]
[1748831274630,0.00248446,105190.0,105180.0,1.54134025]
[1748831274850,0.00248446,105190.0,105180.0,1.83286025]
[1748831275377,0.00248446,105190.0,105180.0,1.83287925]
[1748831279664,0.00248446,105190.0,105180.0,1.81765925]
[1748831279865,0.01908446,105190.0,105180.0,1.81765925]
[1748831282401,0.01908446,105190.0,105180.0,1.41765925]
[1748831282605,0.01808446,105190.0,105180.0,1.41765925]
[1748831285489,0.01808446,105190.0,105180.0,1.81765925]
[1748831300735,0.00248446,105190.0,105180.0,2.18111475]
[1748831300951,0.00248446,105190.0,105180.0,2.86371475]
[1748831301496,0.00148446,105190.0,105180.0,2.86071475]
[1748831301910,0.00148446,105190.0,105180.0,2.86571475]
[1748831302311,0.00248446,105190.0,105180.0,2.86571475]
[1748831303141,0.00248446,105190.0,105180.0,2.88351392]
[1748831303757,0.00248446,105190.0,105180.0,2.88351312]
[1748831303962,0.00248446,105190.0,105180.0,2.88351246]
[1748831304801,0.00239647,105190.0,105180.0,2.8835054]
[1748831305207,0.00239647,105190.0,105180.0,2.88350529]
[1748831305407,0.00239647,105190.0,105180.0,2.86571475]
[1748831305608,0.00239647,105190.0,105180.0,2.88350525]
[1748831305805,0.033852,105210.0,105200.0,0.22863008]
[1748831306057,0.033852,105210.0,105200.0,1.35907281]
[1748831306402,0.033852,105210.0,105200.0,1.78759411]
[1748831306704,0.017752,105210.0,105200.0,2.10550876]
[1748831306912,0.017752,105210.0,105200.0,2.12060475]
[1748831307156,0.017752,105210.0,105200.0,2.12364484]
[1748831307539,0.017752,105210.0,105200.0,2.12464484]
[1748831307742,0.017752,105210.0,105200.0,2.13918569]
[1748831307940,0.017752,105210.0,105200.0,2.13818569]
[1748831308161,0.017752,105210.0,105200.0,2.12040502]
[1748831308478,0.019752,105210.0,105200.0,2.14017747]
[1748831308685,0.017752,105210.0,105200.0,2.1401729]
[1748831309841,0.017752,105210.0,105200.0,2.14017027]
[1748831310585,0.017752,105210.0,105200.0,2.14017019]
[1748831310793,0.017752,105210.0,105200.0,2.14017016]
[1748831311000,0.017752,105210.0,105200.0,2.43277016]
[1748831311407,0.017752,105210.0,105200.0,2.42973004]
[1748831311609,0.017752,105210.0,105200.0,2.43276668]
[1748831313055,0.017752,105210.0,105200.0,2.42972473]
[1748831313215,0.017752,105210.0,105200.0,2.43276474]
[1748831313452,0.017752,105210.0,105200.0,2.41500482]
[1748831313618,0.017752,105210.0,105200.0,2.43276474]
[1748831314016,0.017752,105210.0,105200.0,1.47902079]
[1748831314218,0.017752,105210.0,105200.0,2.41500482]
[1748831314629,0.017752,105210.0,105200.0,2.43276348]
[1748831315387,0.017752,105210.0,105200.0,2.45052316]
[1748831315589,0.017752,105210.0,105200.0,2.43276348]
[1748831315794,0.017752,105210.0,105200.0,2.45052315]
[1748831316422,0.017752,105210.0,105200.0,2.43276348]
[1748831316624,0.017752,105210.0,105200.0,2.45052315]
[1748831317504,0.017752,105210.0,105200.0,2.4505223]
[1748831318286,0.017752,105210.0,105200.0,2.43276348]
[1748831320166,0.017752,105210.0,105200.0,2.4505223]
[1748831321025,0.017752,105210.0,105200.0,2.43276348]
[1748831321227,0.017752,105210.0,105200.0,2.85562186]
[1748831322140,0.017752,105210.0,105200.0,2.85362043]
[1748831322340,0.017752,105210.0,105200.0,2.8536225]
[1748831322566,0.017752,105210.0,105200.0,2.8576225]
[1748831323280,0.017752,105210.0,105200.0,2.88520969]
[1748831323908,0.02663113,105220.0,105210.0,0.59835013]
[1748831324116,0.02663113,105220.0,105210.0,1.96134607]
[1748831324578,0.02663113,105220.0,105210.0,2.38986501]
[1748831324822,0.02663113,105220.0,105210.0,2.07195036]
[1748831325039,0.02663113,105220.0,105210.0,2.12195036]
[1748831325254,0.02663113,105220.0,105210.0,2.45496501]
[1748831325497,0.1,105230.0,105220.0,0.59832937]
[1748831325710,0.1,105230.0,105220.0,2.09940443]
[1748831326193,1.10814494,105250.0,105240.0,0.22854697]
[1748831326433,1.10814494,105250.0,105240.0,1.36655557]
[1748831326649,1.10814494,105250.0,105240.0,1.34880798]
[1748831326868,1.10814494,105250.0,105240.0,1.39506011]
[1748831327085,1.10814494,105250.0,105240.0,1.39506506]
[1748831327537,1.10814494,105250.0,105240.0,1.39511369]
[1748831328210,1.0339,105250.0,105240.0,1.39511369]
[1748831328660,1.0349,105250.0,105240.0,1.39511369]
[1748831328872,1.0349,105250.0,105240.0,1.37737161]
[1748831329548,1.0349,105250.0,105240.0,1.39602077]
[1748831329976,1.0349,105250.0,105240.0,1.79602077]
[1748831330439,1.0349,105250.0,105240.0,1.79601987]
[1748831330650,1.0349,105250.0,105240.0,1.81376184]
[1748831330849,1.0349,105250.0,105240.0,1.79601987]
[1748831332048,1.0349,105250.0,105240.0,1.81376458]
[1748831332894,1.0349,105250.0,105240.0,1.81375881]
[1748831333117,1.0349,105250.0,105240.0,1.79601987]
[1748831333316,1.0349,105250.0,105240.0,1.81375881]
[1748831333549,1.0349,105250.0,105240.0,1.15011057]
[1748831333810,1.0349,105250.0,105240.0,1.38108247]
[1748831334010,1.0349,105250.0,105240.0,1.38593987]
[1748831334213,1.0191,105250.0,105240.0,1.71385452]
[1748831334443,1.0191,105250.0,105240.0,1.72631541]
[1748831334657,1.0191,105250.0,105240.0,1.75677414]
[1748831334874,1.003,105250.0,105240.0,2.0790376]
[1748831335139,1.002,105250.0,105240.0,3.15366297]
[1748831335357,0.59312631,105250.0,105240.0,2.19833823]
[1748831335572,0.59112631,105250.0,105240.0,2.49093823]
[1748831336250,0.59112631,105250.0,105240.0,2.49393823]
[1748831336469,0.59212631,105250.0,105240.0,2.17955051]
[1748831336887,0.59212631,105250.0,105240.0,2.49693823]
[1748831337302,0.59212631,105250.0,105240.0,2.19729063]
[1748831337510,0.59153711,105250.0,105240.0,2.17655051]
[1748831337721,0.59153711,105250.0,105240.0,2.57955051]
[1748831338784,0.59153711,105250.0,105240.0,2.59729023]
[1748831339203,0.59153711,105250.0,105240.0,2.61502954]
[1748831339414,0.59153711,105250.0,105240.0,2.21669023]
[1748831339625,0.59153711,105250.0,105240.0,2.59721023]
[1748831339841,0.59153711,105250.0,105240.0,2.61494964]
[1748831340028,0.59153711,105250.0,105240.0,2.59721023]
[1748831340515,0.59153711,105250.0,105240.0,2.61494963]
[1748831340890,0.59153711,105250.0,105240.0,2.59721023]
[1748831341453,0.59133937,105250.0,105240.0,2.59721023]
[1748831341659,0.59133937,105250.0,105240.0,2.6149486]
[1748831342026,0.59133937,105250.0,105240.0,2.59720979]
[1748831342248,0.59133937,105250.0,105240.0,2.6149486]
[1748831342411,0.59133937,105250.0,105240.0,2.59720979]
[1748831342628,0.59133937,105250.0,105240.0,2.61494858]
[1748831342831,0.59133937,105250.0,105240.0,2.59720979]
[1748831343087,0.59133937,105250.0,105240.0,2.61494852]
[1748831343294,0.59133937,105250.0,105240.0,2.59720979]
[1748831343886,0.58848922,105250.0,105240.0,2.61494992]
[1748831344083,0.58563908,105250.0,105240.0,2.59720979]
[1748831344303,0.58249387,105250.0,105240.0,2.59720979]
[1748831344685,0.58249387,105250.0,105240.0,2.61494992]
[1748831345088,0.58249387,105250.0,105240.0,2.63269003]
[1748831345697,0.58249387,105250.0,105240.0,2.63265432]
[1748831346004,0.58249387,105250.0,105240.0,2.63265399]
[1748831346479,0.58249387,105250.0,105240.0,2.61490976]
[1748831346480,0.56750387,105250.0,105240.0,2.61490976]
[1748831346686,0.01713566,105270.0,105260.0,0.63304631]
[1748831346687,0.00073566,105270.0,105260.0,0.63304631]
[1748831346894,0.00073566,105270.0,105260.0,1.83513561]
[1748831347112,0.00073566,105270.0,105260.0,1.86768686]
[1748831347310,0.00073566,105270.0,105260.0,2.2960977]
[1748831347510,0.00073566,105270.0,105260.0,2.29609768]
[1748831347725,0.00073566,105270.0,105260.0,2.57102762]
[1748831347942,0.00073566,105270.0,105260.0,2.58869768]
[1748831348158,0.00073566,105270.0,105260.0,2.5906959]
[1748831348378,0.00073566,105270.0,105260.0,2.5886959]
[1748831348579,0.00073566,105270.0,105260.0,2.5916959]
[1748831348809,0.00173566,105270.0,105260.0,2.5956959]
[1748831349011,0.00073566,105270.0,105260.0,2.5916959]
[1748831349218,0.00073566,105270.0,105260.0,2.2990959]
[1748831349459,0.00173566,105270.0,105260.0,2.3030959]
[1748831349596,0.00173566,105270.0,105260.0,2.30006325]
[1748831349796,0.00173566,105270.0,105260.0,2.28242762]
[1748831350001,0.00173566,105270.0,105260.0,2.28542762]
[1748831350245,0.00173566,105270.0,105260.0,2.30306251]
[1748831350448,0.00173566,105270.0,105260.0,2.30306256]
[1748831350657,0.00173566,105270.0,105260.0,2.30290256]
[1748831351298,0.00173566,105270.0,105260.0,2.3028919]
[1748831351718,0.00173566,105270.0,105260.0,2.28526668]
[1748831352321,0.00173566,105270.0,105260.0,2.3028919]
[1748831352580,0.00173566,105270.0,105260.0,2.28804482]
[1748831352996,0.00173566,105270.0,105260.0,2.2704196]
[1748831353644,0.00173566,105270.0,105260.0,1.95303188]
[1748831354302,0.00173566,105270.0,105260.0,1.57175188]
[1748831354512,0.00173566,105270.0,105260.0,1.50017046]
[1748831354721,0.00173566,105270.0,105260.0,1.88197046]
[1748831354906,0.00173566,105270.0,105260.0,1.58993046]
[1748831355131,0.00173566,105270.0,105260.0,1.89693046]
[1748831355383,0.00173566,105270.0,105260.0,1.89693057]
[1748831355842,0.00173566,105270.0,105260.0,1.89389326]
[1748831356056,0.00173566,105270.0,105260.0,1.89693057]
[1748831356754,0.01784186,105280.0,105270.0,0.61848471]
[1748831356972,0.01784186,105280.0,105270.0,1.44492404]
[1748831357199,0.00284186,105280.0,105270.0,1.77891176]
[1748831357419,0.00284186,105280.0,105270.0,2.21297329]
[1748831357643,0.00284186,105280.0,105270.0,2.19531176]
[1748831357852,0.00284186,105280.0,105270.0,2.21297868]
[1748831358055,0.00284186,105280.0,105270.0,2.23406765]
[1748831358601,0.00284186,105280.0,105270.0,2.21640076]
[1748831358796,0.00284186,105280.0,105270.0,2.24398795]
[1748831359018,0.00284186,105280.0,105270.0,2.24598795]
[1748831360058,0.00284186,105280.0,105270.0,1.91220023]
[1748831360251,0.00284186,105280.0,105270.0,2.22958795]
[1748831360438,0.00284186,105280.0,105270.0,1.91220023]
[1748831360836,0.00284186,105280.0,105270.0,1.92986711]
[1748831361038,0.00284186,105280.0,105270.0,2.20448023]
[1748831361237,0.00284186,105280.0,105270.0,2.22214711]
[1748831362034,0.00284186,105280.0,105270.0,2.22214704]
[1748831362237,0.03444186,105280.0,105270.0,1.95037213]
[1748831362434,0.03444186,105280.0,105270.0,1.65805771]
[1748831362688,0.03444186,105280.0,105270.0,1.15818797]
[1748831362833,0.03444186,105280.0,105270.0,1.5048493]
[1748831362834,0.01959819,105280.0,105270.0,1.5048493]
[1748831363037,0.01959819,105280.0,105270.0,1.4871261]
[1748831363291,0.01959819,105280.0,105270.0,1.5371261]
[1748831363522,0.01959819,105280.0,105270.0,1.55484945]
[1748831363674,0.01959819,105280.0,105270.0,1.87223717]
[1748831364094,0.01959819,105280.0,105270.0,1.5371261]
[1748831364367,0.01959819,105280.0,105270.0,1.85444538]
[1748831365616,0.01959819,105280.0,105270.0,1.80444538]
[1748831365819,0.01959819,105280.0,105270.0,1.82216873]
[1748831366439,0.01959819,105280.0,105270.0,1.87216873]
[1748831366849,0.01959819,105280.0,105270.0,1.87217527]
[1748831367270,0.01959819,105280.0,105270.0,2.16477527]
[1748831368036,0.01959819,105280.0,105270.0,2.11477527]
[1748831368231,0.01959819,105280.0,105270.0,2.11478037]
[1748831368695,0.01959819,105280.0,105270.0,2.11478447]
[1748831369407,0.01959819,105280.0,105270.0,2.16478447]
[1748831369596,0.01959819,105280.0,105270.0,2.16478786]
[1748831370590,0.01959819,105280.0,105270.0,2.16479072]
[1748831370796,0.01959819,105280.0,105270.0,2.14704538]
[1748831371016,0.01959819,105280.0,105270.0,2.16479072]
[1748831371419,0.01959819,105280.0,105270.0,2.14704538]
[1748831371632,0.01959819,105280.0,105270.0,2.16175595]
[1748831371865,0.01959819,105280.0,105270.0,2.14704573]
[1748831372494,0.01959819,105280.0,105270.0,2.16479354]
[1748831372830,0.01959819,105280.0,105270.0,2.18254135]
[1748831373642,0.01959819,105280.0,105270.0,2.15028916]
[1748831373844,0.01959819,105280.0,105270.0,2.20028916]
[1748831374436,0.01959819,105280.0,105270.0,2.21803698]
[1748831374635,0.01959819,105280.0,105270.0,2.20028916]
[1748831374835,0.01959819,105280.0,105270.0,2.21803697]
[1748831375064,0.01959819,105280.0,105270.0,2.14992916]
[1748831375270,0.01959819,105280.0,105270.0,2.21767698]
[1748831375469,0.01959819,105280.0,105270.0,2.14992916]
[1748831375683,0.01959819,105280.0,105270.0,2.19992916]
[1748831376732,0.01959819,105280.0,105270.0,2.21769775]
[1748831376970,0.01959819,105280.0,105270.0,2.19992916]
[1748831377170,0.01959819,105280.0,105270.0,2.21770358]
[1748831377787,0.01959819,105280.0,105270.0,2.19992916]
[1748831378650,0.01959819,105280.0,105270.0,2.21770358]
[1748831379126,0.01959819,105280.0,105270.0,1.14370903]
[1748831379365,0.33691747,105280.0,105270.0,0.41148537]
[1748831379632,0.01959819,105280.0,105270.0,0.41148548]
[1748831379864,0.01959819,105280.0,105270.0,0.41148572]
[1748831380110,0.01959819,105280.0,105270.0,0.39370903]
[1748831380583,0.33691747,105280.0,105270.0,0.39370903]
[1748831382762,0.01959819,105280.0,105270.0,0.39370949]
[1748831383207,0.01959819,105280.0,105270.0,0.68566949]
[1748831383448,0.01959819,105280.0,105270.0,1.08566949]
[1748831391644,0.01959819,105280.0,105270.0,0.79370949]
[1748831391860,0.01959819,105280.0,105270.0,1.08530949]
[1748831395908,0.01959819,105280.0,105270.0,1.08574949]
[1748831398035,0.33691747,105280.0,105270.0,0.66762049]
[1748831398414,0.01959819,105280.0,105270.0,0.66762049]
[1748831398640,0.33691747,105280.0,105270.0,0.66762049]
[1748831399254,0.01959819,105280.0,105270.0,0.66762049]
[1748831399403,0.33691747,105280.0,105270.0,0.6676207]
[1748831401685,0.01959819,105280.0,105270.0,0.6676207]
[1748831403054,0.33691747,105280.0,105270.0,0.3756207]
[1748831403281,0.01959819,105280.0,105270.0,0.6724436]
[1748831403742,0.36541153,105280.0,105270.0,0.36148583]
[1748831403953,0.36541153,105280.0,105270.0,0.13953599]
[1748831403954,0.86320303,105280.0,105270.0,0.13953599]
[1748831404153,1.49536303,105280.0,105270.0,0.13953599]
[1748831404359,1.01323343,105280.0,105270.0,0.34852231]
[1748831404563,0.33791747,105280.0,105270.0,0.36452008]
[1748831406043,0.33691747,105280.0,105270.0,0.36452008]
[1748831406420,0.34091747,105280.0,105270.0,0.36452008]
[1748831406853,0.34491747,105280.0,105270.0,0.36452008]
[1748831407436,0.02759819,105280.0,105270.0,0.36452008]
[1748831407644,0.34491747,105280.0,105270.0,0.36452008]
[1748831410291,0.02759819,105280.0,105270.0,0.36452008]
[1748831410462,0.34491747,105280.0,105270.0,0.36452008]
[1748831411279,0.34491747,105280.0,105270.0,0.36452043]
[1748831413366,0.02759819,105280.0,105270.0,0.36452043]
[1748831413565,0.02759819,105280.0,105270.0,0.36938333]
[1748831413794,0.0243,105280.0,105270.0,0.39789333]
[1748831415085,0.0243,105280.0,105270.0,0.79789333]
[1748831415533,0.0243,105280.0,105270.0,0.79485472]
[1748831415744,0.0243,105280.0,105270.0,0.79789313]
[1748831417558,0.008,105280.0,105270.0,0.79789313]
[1748831417975,0.008,105280.0,105270.0,0.41379313]
[1748831418604,0.008,105280.0,105270.0,0.79789313]
[1748831418812,0.008,105280.0,105270.0,1.16629036]
[1748831419022,0.008,105280.0,105270.0,0.84897108]
[1748831419225,0.008,105280.0,105270.0,1.16629036]
[1748831419643,0.004,105280.0,105270.0,0.84897108]
[1748831419848,0.00200153,105290.0,105280.0,0.21846394]
[1748831420057,0.03280153,105290.0,105280.0,0.31735665]
[1748831420264,0.03280153,105290.0,105280.0,0.60947665]
[1748831420653,0.03280153,105290.0,105280.0,0.63798165]
[1748831421054,0.03280153,105290.0,105280.0,0.34591028]
[1748831421264,0.03280153,105290.0,105280.0,0.72899028]
[1748831421507,0.03280153,105290.0,105280.0,0.43695028]
[1748831421721,0.35012081,105290.0,105280.0,0.63895028]
[1748831422100,0.03280153,105290.0,105280.0,1.03895028]
[1748831422504,0.03280153,105290.0,105280.0,1.03795028]
[1748831422706,0.03280153,105290.0,105280.0,0.63795028]
[1748831423077,0.03380153,105290.0,105280.0,1.03795028]
[1748831423453,0.01870153,105290.0,105280.0,1.03795028]
[1748831423639,0.00300153,105290.0,105280.0,1.03795028]
[1748831424201,0.00300153,105290.0,105280.0,1.03794981]
[1748831425053,0.00200153,105290.0,105280.0,1.03794981]
[1748831425254,0.00200153,105290.0,105280.0,1.03894981]
[1748831425852,0.00200153,105290.0,105280.0,1.03994981]
[1748831427241,0.00200153,105290.0,105280.0,1.07084981]
[1748831427674,0.00200153,105290.0,105280.0,1.05534981]
[1748831428642,0.00200153,105290.0,105280.0,1.03994981]
[1748831428841,0.00200153,105290.0,105280.0,1.05534981]
[1748831431614,0.00200153,105290.0,105280.0,1.39806909]
[1748831431802,0.00200153,105290.0,105280.0,1.03994974]
[1748831432000,0.03320153,105290.0,105280.0,1.12946974]
[1748831432235,0.35052081,105290.0,105280.0,0.34790974]
[1748831432437,0.42676575,105290.0,105280.0,0.31940474]
[1748831432837,0.35052081,105290.0,105280.0,0.31636687]
[1748831433007,0.35052081,105290.0,105280.0,0.31740526]
[1748831433410,0.35152081,105290.0,105280.0,0.31740526]
[1748831433658,0.35152081,105290.0,105280.0,0.60904526]
[1748831434316,0.03420153,105290.0,105280.0,0.60904526]
[1748831434795,0.03420153,105290.0,105280.0,0.60896526]
[1748831434917,0.35152081,105290.0,105280.0,0.60896526]
[1748831435756,0.35152081,105290.0,105280.0,0.60892526]
[1748831435934,0.03420153,105290.0,105280.0,0.60892526]
[1748831437254,0.03420153,105290.0,105280.0,0.60892518]
[1748831438626,0.35152081,105290.0,105280.0,0.60892518]
[1748831439341,0.35152081,105290.0,105280.0,0.31740518]
[1748831439564,0.35152081,105290.0,105280.0,0.60876518]
[1748831443881,0.03420153,105290.0,105280.0,0.60876518]
[1748831446120,0.03420153,105290.0,105280.0,0.60572687]
[1748831446333,0.03420153,105290.0,105280.0,0.60876515]
[1748831450447,0.03420153,105290.0,105280.0,0.60572687]
[1748831450630,0.03420153,105290.0,105280.0,0.60876514]
[1748831451163,0.35152081,105290.0,105280.0,0.60876514]
[1748831452344,0.03420153,105290.0,105280.0,0.60876514]
[1748831452547,0.01810153,105290.0,105280.0,0.60876514]
[1748831454816,0.00300153,105290.0,105280.0,0.64136514]
[1748831455450,0.00300153,105290.0,105280.0,0.66987114]
[1748831456701,0.00300153,105290.0,105280.0,0.65327114]
[1748831457190,0.00300153,105290.0,105280.0,1.06917114]
[1748831458367,0.00300153,105290.0,105280.0,1.06917077]
[1748831459252,0.00300153,105290.0,105280.0,1.06917078]
[1748831460813,0.00300153,105290.0,105280.0,1.03727078]
[1748831461044,0.35172081,105290.0,105280.0,0.74591078]
[1748831461237,0.35172081,105290.0,105280.0,0.63703078]
[1748831461484,0.35172081,105290.0,105280.0,0.34591078]
[1748831461703,0.35172081,105290.0,105280.0,0.60864478]
[1748831461918,0.36121766,105290.0,105280.0,0.60864515]
[1748831462130,0.36121757,105290.0,105280.0,0.60864515]
[1748831462562,0.35172081,105290.0,105280.0,0.60560687]
[1748831462979,0.36121757,105290.0,105280.0,0.60560687]
[1748831464021,0.35172081,105290.0,105280.0,0.60560687]
[1748831464229,0.36121757,105290.0,105280.0,0.60560687]
[1748831464441,0.04389829,105290.0,105280.0,0.60560687]
[1748831464654,0.35172081,105290.0,105280.0,0.60556687]
[1748831465733,0.36121757,105290.0,105280.0,0.60556687]
[1748831466164,0.35172081,105290.0,105280.0,0.31436687]
[1748831466393,0.35172081,105290.0,105280.0,0.60580687]
[1748831467737,0.35172081,105290.0,105280.0,0.60884528]
[1748831470661,0.35172081,105290.0,105280.0,0.60864528]
[1748831470662,0.36121766,105290.0,105280.0,0.60864528]
[1748831471280,0.35172081,105290.0,105280.0,0.60864528]
[1748831472710,0.36121757,105290.0,105280.0,0.60864528]
[1748831472914,0.35172081,105290.0,105280.0,0.60864528]
[1748831475066,0.35172081,105290.0,105280.0,0.60864527]
[1748831475506,0.35172081,105290.0,105280.0,0.60868527]
[1748831477987,0.35172081,105290.0,105280.0,0.60856527]
[1748831484966,0.36121757,105290.0,105280.0,0.60856527]
[1748831485215,0.35172081,105290.0,105280.0,0.60856527]
[1748831486380,0.35172081,105290.0,105280.0,0.60852527]
[1748831486582,0.35172081,105290.0,105280.0,0.31740527]
[1748831486796,0.36121766,105290.0,105280.0,0.31740527]
[1748831487313,0.37071469,105290.0,105280.0,0.31740527]
[1748831487461,0.36121766,105290.0,105280.0,0.31740527]
[1748831487666,0.37071469,105290.0,105280.0,0.31740527]
[1748831487946,1.02508657,105290.0,105280.0,0.19305663]
[1748831488153,1.61312737,105290.0,105280.0,4.863e-05]
[1748831488360,1.29580809,105290.0,105280.0,4.863e-05]
[1748831488739,1.29480809,105290.0,105280.0,4.863e-05]
[1748831488993,1.38731931,105290.0,105280.0,4.863e-05]
[1748831489181,1.39531931,105290.0,105280.0,4.863e-05]
[1748831489615,1.39131931,105290.0,105280.0,4.863e-05]
[1748831490443,1.29480809,105290.0,105280.0,4.863e-05]
[1748831490649,1.30480809,105290.0,105280.0,0.00104863]
[1748831491072,1.62212737,105290.0,105280.0,0.00104863]
[1748831491510,0.5299696,105280.0,105270.0,0.05324343]
[1748831491727,0.41030004,105260.0,105250.0,0.20902527]
[1748831491936,1.10825932,105260.0,105250.0,0.21206486]
[1748831492561,1.10825932,105260.0,105250.0,0.20902536]
[1748831493237,1.10825932,105260.0,105250.0,0.21852609]
[1748831493638,1.11025932,105260.0,105250.0,0.21852609]
[1748831493886,1.30026502,105260.0,105250.0,0.20902572]
[1748831494114,1.33197648,105260.0,105240.0,0.31444925]
[1748831494337,0.92314598,105260.0,105250.0,0.19952493]
[1748831494570,0.92314598,105260.0,105250.0,0.20902602]
[1748831494769,0.95584598,105260.0,105250.0,0.19952493]
[1748831495001,0.57222493,105250.0,105240.0,0.29544681]
[1748831495220,0.58676578,105250.0,105240.0,0.20909451]
[1748831495441,0.58676578,105250.0,105240.0,0.21859641]
[1748831495661,0.90408506,105250.0,105240.0,0.19209042]
[1748831495886,0.90408506,105250.0,105240.0,0.00204862]
[1748831496096,0.90408506,105250.0,105240.0,4.862e-05]
[1748831496315,0.90408506,105250.0,105240.0,0.00204862]
[1748831496755,0.99659628,105250.0,105240.0,0.00204862]
[1748831496967,0.99659628,105250.0,105240.0,0.00304862]
[1748831497179,1.31491556,105250.0,105240.0,0.00304862]
[1748831497629,0.90508506,105250.0,105240.0,0.00304862]
[1748831498030,0.58776578,105250.0,105240.0,0.00304862]
[1748831498271,1.28616506,105250.0,105240.0,0.20259251]
[1748831498679,1.30553855,105250.0,105240.0,0.20259251]
[1748831500397,1.30553855,105250.0,105240.0,0.21209451]
[1748831500604,1.30553855,105250.0,105240.0,0.20259251]
[1748831501228,1.28616506,105250.0,105240.0,0.20259251]
[1748831502157,1.28616506,105250.0,105240.0,0.00304862]
[1748831502367,1.28616506,105250.0,105240.0,0.19309042]
[1748831502574,1.28616506,105250.0,105240.0,0.20259251]
[1748831503238,1.28616506,105250.0,105240.0,0.21209451]
[1748831503646,0.91458597,105250.0,105240.0,0.22159632]
[1748831503855,0.3737,105250.0,105240.0,0.32695234]
[1748831504080,0.341,105250.0,105240.0,0.33645379]
[1748831504287,0.341,105250.0,105240.0,0.36905379]
[1748831507109,0.341,105250.0,105240.0,0.66069379]
[1748831508041,0.001,105250.0,105240.0,0.66069379]
[1748831508244,0.001,105250.0,105240.0,0.64409379]
[1748831508770,0.001,105250.0,105240.0,0.66039379]
[1748831511060,0.001,105250.0,105240.0,0.71039379]
[1748831511463,0.001,105250.0,105240.0,0.69409379]
[1748831511671,0.001,105250.0,105240.0,0.71039379]
[1748831524438,0.001,105250.0,105240.0,1.0280877]